Cogmind - Beta 14 @@@ ROGUE MODE // 2025.03.04 @ 21:28:11 Player: Sketti Result: Self-destructed Performance ------------- Evolutions (5) 2500 Regions Visited (7) 1400 Robots Destroyed (41) 205 Value Destroyed (1146) 1146 Prototype IDs (4) 80 Alien Tech Used (0) 0 Bonus (189) 189 TOTAL SCORE: 5520 Bonus ------- High Alert Combat Kills 78 Follower Combat Kills 111 Cogmind --------- Core Integrity 821/1000 Matter 284/300 Energy 99/100 System Corruption 0% Temperature Cool (0) Movement Flying (40) Location -5/Upper Caves Parts ------- > --- POWER (2) -------- (None) > --- PROPULSION (6) --- Xenon Bombardment Thruster > --- UTILITY (7) ------ Advanced Weight Redist. System Advanced Signal Interpreter Cloaking Device Improved Hacking Suite > --- WEAPON (2) ------- (None) > --- INVENTORY (5) ---- Enhanced Nuclear Core Light Fission Core Proton Cannon Peak State ------------ > --- POWER ------------ Micro Nuclear Core Light Angular Momentum Engine > --- PROPULSION ------- Cesium-ion Thruster Cesium-ion Thruster Xenon Bombardment Thruster Xenon Bombardment Thruster Nuclear Pulse Thruster > --- UTILITY ---------- Advanced Heat Sink Weight Redist. System Advanced Signal Interpreter Cloaking Device Improved Hacking Suite System Restoration Module > --- WEAPON ----------- Cooled Particle Cannon Magnetic Acceleration Cannon > --- INVENTORY -------- Enhanced Nuclear Core Light Fission Core Xenon Bombardment Thruster Proton Cannon Precision Grenade Launcher [Rating: 66] Favorites ----------- Power Light Angular Momentum Engine Engine Light Angular Momentum Engine Power Core Light Nuclear Core Propulsion Xenon Bombardment Thruster Treads Light Treads Flight Unit Xenon Bombardment Thruster Utility Small Storage Unit Device Cloaking Device Storage Small Storage Unit Processor Advanced Signal Interpreter Hackware Improved Hacking Suite Weapon Light Assault Rifle Energy Gun EM Pulse Gun Energy Cannon Cooled Particle Cannon Ballistic Gun Light Assault Rifle Ballistic Cannon Advanced Assault Cannon Launcher Precision Grenade Launcher Build | -11 -10 -9 -8 -7 -6 -5 -5 ------- Run | Yrd Mat Mat Mat Fac Fac Fac Upp Slots Evolved 10 | . . 2 2 2 2 2 . Power 1 | . . . 1 . . . . Propulsion 4 | . . . . 2 1 1 . Utility 5 | . . 2 1 . 1 1 . Weapon . | . . . . . . . . Parts Attached 60 | 6 1 7 4 14 21 2 5 Power 8 | 1 . . . 2 4 . 1 Engine 4 | 1 . . . 1 2 . . Core 4 | . . . . 1 2 . 1 Reactor . | . . . . . . . . Propulsion 23 | 2 . 4 2 7 6 1 1 Treads 4 | 2 . 2 . . . . . Leg . | . . . . . . . . Wheel . | . . . . . . . . Hover . | . . . . . . . . Flight 19 | . . 2 2 7 6 1 1 Utility 13 | 1 . . 1 3 7 1 . Device 8 | . . . . 3 4 1 . Storage 2 | 1 . . 1 . . . . Processor 2 | . . . . . 2 . . Hackware 1 | . . . . . 1 . . Protection . | . . . . . . . . Artifact . | . . . . . . . . Weapon 16 | 2 1 3 1 2 4 . 3 Energy Gun 5 | 1 . 2 1 1 . . . Energy Cannon 4 | . . . . . 3 . 1 Ballistic Gun 2 | 1 1 . . . . . . Ballistic Cannon 3 | . . 1 . 1 1 . . Launcher 2 | . . . . . . . 2 Special Weapon . | . . . . . . . . Impact Weapon . | . . . . . . . . Slashing Weapon . | . . . . . . . . Piercing Weapon . | . . . . . . . . Special Melee Weapon . | . . . . . . . . Unidentified Prototypes 3 | . . . 1 1 1 . . Parts Lost 20 | . . 6 . 2 . 1 11 Power 3 | . . 1 . . . . 2 Propulsion 10 | . . 2 . 2 . . 6 Utility 1 | . . . . . . . 1 Weapon 6 | . . 3 . . . 1 2 Highest Loss Streak 5 | . . 4 . 2 . 1 5 To Critical Strikes 2 | . . . . . . 1 1 Average Slot Usage (%) 70 | . 85 42 27 61 91 81 64 Engine 4 | . 14 4 . 3 3 5 4 Core 4 | . . . . 2 8 5 3 Treads 4 | . 28 11 . . . . . Flight 22 | . . 3 18 29 33 29 21 Device 12 | . . . . 6 24 17 13 Storage 4 | . 14 9 . 7 2 . . Processor 2 | . . . . . 5 5 5 Hackware 2 | . . . . . 3 5 5 Energy Gun 1 | . 6 1 . 1 . . . Energy Cannon 2 | . . . . . 6 4 2 Ballistic Gun 3 | . 21 9 . . . . . Ballistic Cannon 2 | . . 2 9 7 1 5 1 Peak Build Rating 66 | 6 6 6 12 30 66 66 63 Average Rating 30 | 5 6 3 6 20 51 62 50 On Entrance 22 | . 6 6 4 9 30 63 63 Naked Turns . | . . . . . . . . Heaviest Build 33 | 11 11 10 9 18 33 32 32 Greatest Support 44 | 40 40 40 10 25 35 44 44 Greatest Overweight (x) 2 | . . 2 . . . . 1 Average Overweight (x) . | . . . . . . . . Largest Inventory Capacity 8 | 8 8 8 8 8 8 5 5 Average Capacity 6 | 7 8 7 5 8 6 5 5 Most Carried 8 | 4 6 7 5 8 8 5 5 Average Carried 4 | . 2 5 4 6 5 5 2 Final Capacity 8 | 8 8 5 8 8 5 5 5 Final Carried 8 | 1 6 5 5 8 5 5 3 Class Distribution -------------------- 52% | Sprinter 37% | Mutant 10% | Scavenger-Sprinter Dominant Class ---------------- Mutant | -10/Materials Mutant | -9/Materials Sprinter | -8/Materials Sprinter | -7/Factory Sprinter | -6/Factory Sprinter | -5/Factory Sprinter | -5/Upper Caves Resources | -11 -10 -9 -8 -7 -6 -5 -5 ----------- Run | Yrd Mat Mat Mat Fac Fac Fac Upp Matter Collected 1128 | 255 36 47 . 130 467 . 193 Remotely . | . . . . . . . . Salvage Created 1321 | 219 45 311 43 124 395 . 184 Parts 83 | 14 8 10 4 10 32 . 5 Haulers Intercepted . | . . . . . . . . Recyclers Shooed 5 | 1 . 3 . . 1 . . Parts Field Recycled . | . . . . . . . . Retrieved Matter . | . . . . . . . . Parts Self-Destructed 5 | . . . . . . . 5 Prevented 2 | . . . . . . . 2 Kills | -11 -10 -9 -8 -7 -6 -5 -5 ------- Run | Yrd Mat Mat Mat Fac Fac Fac Upp Combat Hostiles Destroyed 30 | . 3 5 4 6 8 . 4 Guns 6 | . 3 3 . . . . . Cannons 19 | . . 1 4 6 8 . . AOE 4 | . . 1 . . . . 3 Classes Destroyed 8 | 3 1 2 . 1 1 . . Worker 3 | 1 . . . . 2 . . Builder 1 | . . . . . 1 . . Tunneler 4 | 4 . . . . . . . Recycler 3 | 1 . 2 . . . . . Swarmer 14 | . 3 . 4 4 3 . . Grunt 11 | . . 4 . . 3 . 4 Duelist 1 | . . 1 . . . . . Programmer 4 | . . . . 2 2 . . Best Kill Streak 5 | 2 3 3 4 5 2 . 4 Combat Bots Only 5 | . 3 2 4 5 2 . 4 Max Kills in Single Turn 1 | 1 1 1 1 1 1 . 1 Gunslinging . | . . . . . . . . Exploded 1 | . . 1 . . . . 1 Melee . | . . . . . . . . Uniques/NPCs Destroyed . | . . . . . . . . Combat | -11 -10 -9 -8 -7 -6 -5 -5 -------- Run | Yrd Mat Mat Mat Fac Fac Fac Upp Hostile Shots Fired 368 | . 14 78 30 50 96 15 85 Missed 175 | . 1 23 15 21 58 9 48 Damage Taken 2757 | . 91 892 144 397 460 116 657 Core 793 | . 26 355 63 98 72 41 138 Absorbed by Shields 20 | . . . . . 20 . . Core Remaining (%) 77 | 100 89 11 88 86 91 . . Volleys Fired 164 | 18 13 28 10 24 51 1 19 Largest 2 | 2 2 2 1 2 2 2 1 Hottest 143 | 60 40 40 39 95 90 143 75 Shots Fired 222 | 36 26 44 10 26 59 2 19 Gun 106 | 36 26 42 . 2 . . . Cannon 107 | . . 2 10 24 59 2 10 Launcher 9 | . . . . . . . 9 Special . | . . . . . . . . Kinetic 128 | 18 26 35 10 24 8 1 6 Thermal 54 | . . . . 2 51 1 . Explosive 9 | . . . . . . . 9 Electromagnetic 31 | 18 . 9 . . . . 4 Robot Hit Streak 20 | 20 2 13 6 5 11 1 4 Robot Miss Streak 4 | 2 3 2 1 2 4 1 2 Penetration Max . | . . . . . . . . Secondary Targets . | . . . . . . . . Shots Hit Robots 139 | 27 12 32 8 15 35 1 9 Core Hits 71 | 11 7 18 5 7 15 . 8 Critical Kills . | . . . . . . . . Critical Parts Destroyed 1 | 1 . . . . . . . Critical Strikes 3 | 1 . . . 1 1 . . Destroy 1 | 1 . . . . . . . Blast 2 | . . . . 1 1 . . Melee Attacks . | . . . . . . . . Impact . | . . . . . . . . Slashing . | . . . . . . . . Piercing . | . . . . . . . . Sneak Attacks . | . . . . . . . . Combat Hostiles . | . . . . . . . . Follow-up Attacks . | . . . . . . . . Damage Inflicted 3310 | 316 99 460 172 428 1181 21 633 Guns 713 | 296 94 281 . 42 . . . Cannons 1973 | . . 44 172 386 1181 21 169 Explosions 560 | . . 96 . . . . 464 Melee . | . . . . . . . . Ramming 64 | 20 5 39 . . . . . Kinetic 1245 | 93 94 218 172 386 193 21 68 Thermal 1030 | . . . . 42 988 . . Explosive 560 | . . 96 . . . . 464 Electromagnetic 411 | 203 . 107 . . . . 101 Impact . | . . . . . . . . Slashing . | . . . . . . . . Piercing . | . . . . . . . . Highest Corruption 2 | . 1 . . 1 2 . . Average Corruption 1 | . 1 . . 1 1 . . Corruption Purged 3 | . . . . 1 2 . . Corruption Blocked . | . . . . . . . . Effects 1 | . . . . 1 . . . Message Errors 1 | . . . . 1 . . . Overload Shots 6 | . . . . . 5 1 . Effects 2 | . . . . . 1 1 . Heat Surge 2 | . . . . . 1 1 . Overflow Damage 51 | . . . 7 . 30 . 14 Projectiles 37 | . . . 7 . 30 . . Explosions 14 | . . . . . . . 14 Melee . | . . . . . . . . Knockbacks 7 | . . 2 . 3 1 . 1 Impact 1 | . . 1 . . . . . Kinetic 6 | . . 1 . 3 1 . 1 Secondary . | . . . . . . . . Self-Inflicted Damage 199 | . . 140 . . . . 59 Shots 4 | . . 2 . . . . 2 Rammed 28 | 6 3 19 . . . . . Targets Rammed 29 | 6 3 20 . . . . . Kicked . | . . . . . . . . Crushed 1 | . . 1 . . . . . Highest Temperature 382 | 40 . 9 . 36 382 218 24 Average Temperature 119 | 16 . 5 . 10 159 157 10 Received Heat Transfer 642 | . . 306 36 81 102 . 117 Effects 3 | . . . . . 3 . . Energy Bleed 2 | . . . . . 2 . . Interference 1 | . . . . . 1 . . Siege Activations . | . . . . . . . . Robots Corrupted 1 | . . . . . . . 1 Combat Hostiles 1 | . . . . . . . 1 Parts Fried 4 | 2 . . . . . . 2 Impact Corruptions . | . . . . . . . . Robots Melted . | . . . . . . . . Combat Hostiles . | . . . . . . . . Parts Melted 1 | . . . . . 1 . . Heat Transferred 1286 | . . . . 74 1212 . . Parts Sabotaged . | . . . . . . . . Parts Stolen . | . . . . . . . . Parts Stripped . | . . . . . . . . Power Chain Reactions . | . . . . . . . . Alert | -11 -10 -9 -8 -7 -6 -5 -5 ------- Run | Yrd Mat Mat Mat Fac Fac Fac Upp Peak Influence 609 | 30 141 345 380 609 588 271 . Initial 239 | . 19 59 145 172 126 239 . Average 255 | 13 66 195 259 361 335 246 . Maximum Alert Level 2 | . . 1 1 2 2 1 . Low Security (%) 34 | 100 100 39 35 7 16 . . Level 1 45 | . . 60 64 50 51 100 . Level 2 20 | . . . . 42 31 . . Level 3 . | . . . . . . . . Level 4 . | . . . . . . . . Level 5 . | . . . . . . . . High Security . | . . . . . . . . Max Security . | . . . . . . . . Squads Dispatched 13 | . . 2 . 4 7 . . Investigation 4 | . . . . 3 1 . . Extermination 1 | . . . . . 1 . . Reinforcement 8 | . . 2 . 1 5 . . Assault . | . . . . . . . . Garrison . | . . . . . . . . Intercept . | . . . . . . . . Searches Triggered 2 | . . . . 1 1 . . Construction Impeded 2 | . . . . . 2 . . Haulers Reinforced 1 | . . . . . 1 . . Active Scanning Responses . | . . . . . . . . Cargo Convoy Interrupts . | . . . . . . . . Stealth | -11 -10 -9 -8 -7 -6 -5 -5 --------- Run | Yrd Mat Mat Mat Fac Fac Fac Upp Distress Signals 8 | . . 2 2 1 3 . . Communications Jammed . | . . . . . . . . Distress Signals . | . . . . . . . . Times Spotted 127 | . 7 18 16 21 38 8 19 Peak Tracking Total 11 | . 4 5 7 7 6 6 11 Tactical Retreats 25 | . 1 4 2 3 10 1 4 Traps | -11 -10 -9 -8 -7 -6 -5 -5 ------- Run | Yrd Mat Mat Mat Fac Fac Fac Upp Traps Triggered 8 | . 1 2 . . 5 . . Indirectly . | . . . . . . . . Trap Hack Attempts . | . . . . . . . . Triggered . | . . . . . . . . Disarmed . | . . . . . . . . Reprogrammed . | . . . . . . . . Reused . | . . . . . . . . Traps Extracted . | . . . . . . . . Installed . | . . . . . . . . Triggered 1 | . . 1 . . . . . Machines | -11 -10 -9 -8 -7 -6 -5 -5 ---------- Run | Yrd Mat Mat Mat Fac Fac Fac Upp Machines Disabled 3 | . . 3 . . . . . Max in Single Turn 2 | . . 2 . . . . . Machines Repaired . | . . . . . . . . Machines Dismantled . | . . . . . . . . Machines Sabotaged . | . . . . . . . . Overloaded Fab Kills . | . . . . . . . . Hacking | -11 -10 -9 -8 -7 -6 -5 -5 --------- Run | Yrd Mat Mat Mat Fac Fac Fac Upp Machines Accessed 10 | . 2 . . 3 3 2 . Terminals 4 | . 2 . . . 1 1 . Fabricators 4 | . . . . 2 1 1 . Repair Stations 1 | . . . . . 1 . . Recycling Units . | . . . . . . . . Scanalyzers 1 | . . . . 1 . . . Garrison Access . | . . . . . . . . Total Hacks 24 | . 4 . . 11 7 2 . Successful 16 | . 2 . . 7 5 2 . Failed 8 | . 2 . . 4 2 . . Catastrophic 1 | . . . . 1 . . . Database Lockouts . | . . . . . . . . Manual . | . . . . . . . . Terminals 7 | . 4 . . . 2 1 . Fabricators 8 | . . . . 5 2 1 . Repair Stations 3 | . . . . . 3 . . Recycling Units . | . . . . . . . . Scanalyzers 6 | . . . . 6 . . . Garrison Access . | . . . . . . . . Terminal Hacks 4 | . 2 . . . 1 1 . Record 1 | . . . . . 1 . . Branch Access Points 1 | . 1 . . . . . . Locate Traps 1 | . . . . . . 1 . Hauler Manifests 1 | . 1 . . . . . . Fabricator Hacks 6 | . . . . 3 2 1 . Load Schematic 4 | . . . . 2 1 1 . Build 2 | . . . . 1 1 . . Repair Station Hacks 2 | . . . . . 2 . . Scan Component 1 | . . . . . 1 . . Repair 1 | . . . . . 1 . . Recycling Unit Hacks . | . . . . . . . . Scanalyzer 4 | . . . . 4 . . . Insert Component 2 | . . . . 2 . . . Analyze 2 | . . . . 2 . . . Garrison Access Hacks . | . . . . . . . . Unauthorized Hacks . | . . . . . . . . Terminals . | . . . . . . . . Fabricators . | . . . . . . . . Repair Stations . | . . . . . . . . Recycling Units . | . . . . . . . . Scanalyzers . | . . . . . . . . Garrison Access . | . . . . . . . . Data Cores Recovered . | . . . . . . . . Used . | . . . . . . . . Hacking Detections 7 | . 1 . . 3 2 1 . Full Trace Events 5 | . 1 . . 3 1 . . Feedback Events . | . . . . . . . . Feedback Blocked . | . . . . . . . . Robot Schematics Acquired . | . . . . . . . . Robots Built . | . . . . . . . . Authchips . | . . . . . . . . Time . | . . . . . . . . Total Robot Build Rating . | . . . . . . . . Part Schematics Acquired 1 | . . . . 1 . . . Parts Built 4 | . . . . 2 2 . . Authchips . | . . . . . . . . Time 168 | . . . . 84 84 . . Total Part Build Rating 16 | . . . . 8 8 . . Parts Repaired . | . . . . . . . . Time 26 | . . . . . 26 . . Parts Recycled . | . . . . . . . . Recycled Matter . | . . . . . . . . Retrieved Matter . | . . . . . . . . Retrieved Components . | . . . . . . . . Parts Scanalyzed 2 | . . . . 2 . . . Part Schematics Acquired 1 | . . . . 1 . . . Parts Damaged . | . . . . . . . . Bothacking | -11 -10 -9 -8 -7 -6 -5 -5 ------------ Run | Yrd Mat Mat Mat Fac Fac Fac Upp Used RIF Installer . | . . . . . . . . Robots Hacked . | . . . . . . . . Non-combat . | . . . . . . . . Combat . | . . . . . . . . Robot Hacks Applied . | . . . . . . . . Relay Couplers Released . | . . . . . . . . Fabnet Peak Effective % . | . . . . . . . . Robots Rewired . | . . . . . . . . Allies Hacked . | . . . . . . . . Hacks Repelled . | . . . . . . . . Allies | -11 -10 -9 -8 -7 -6 -5 -5 -------- Run | Yrd Mat Mat Mat Fac Fac Fac Upp Total Allies 3 | . . . . . 3 . . Largest Group 3 | . . . . . 3 . . Highest-Rated Group 93 | . . . . . 93 . . Highest-Rated Ally 31 | . . . . . 31 . . Total Orders . | . . . . . . . . Ally Attacks 38 | . . . . . 38 . . Total Damage 567 | . . . . . 567 . . Kills 3 | . . . . . 3 . . Allies Corrupted . | . . . . . . . . Allies Melted . | . . . . . . . . Intel | -11 -10 -9 -8 -7 -6 -5 -5 ------- Run | Yrd Mat Mat Mat Fac Fac Fac Upp Robot Analysis Total . | . . . . . . . . Derelict Logs Recovered 1 | . . . . . . . 1 Drone Launches . | . . . . . . . . Drone Recoveries . | . . . . . . . . Exploration | -11 -10 -9 -8 -7 -6 -5 -5 ------------- Run | Yrd Mat Mat Mat Fac Fac Fac Upp Turns Passed 2388 | 203 173 346 76 408 751 67 364 Spaces Moved 4716 | 95 80 275 143 1146 1850 224 903 Core 47 | 19 . 28 . . . . . Treads 248 | 76 80 92 . . . . . Legs . | . . . . . . . . Wheels . | . . . . . . . . Hover . | . . . . . . . . Flight 4421 | . . 155 143 1146 1850 224 903 Fastest Speed 24 | 50 160 37 32 27 24 24 24 Average Speed 35 | 138 160 85 34 27 25 26 31 Slowest Speed 160 | 160 160 160 37 30 27 27 117 Overloaded Moves . | . . . . . . . . Propulsion Burnouts . | . . . . . . . . Robots Hopped 26 | . . 3 . 4 19 . . Cave-ins Triggered . | . . . . . . . . Exploration Rate (%) 30 | 6 23 31 31 28 45 8 73 Regions Visited 7 Branch Regions 1 Pre-discovered Areas . | . . . . . . . . Known Exits Taken . | . . . . . . . . Unknown Exits Taken 7 | 1 1 1 1 1 1 1 . Scrap Searched . | . . . . . . . . Spaces Dug 1 | . . . . 1 . . . Terrain Destroyed 119 | . . 29 . 6 7 1 76 Melee . | . . . . . . . . Projectile 18 | . . . . 6 7 1 4 AOE 101 | . . 29 . . . . 72 Terrain Rammed . | . . . . . . . . Walls Destroyed . | . . . . . . . . Machines Disabled . | . . . . . . . . Actions | -11 -10 -9 -8 -7 -6 -5 -5 --------- Run | Yrd Mat Mat Mat Fac Fac Fac Upp Total 5181 | 131 102 335 159 1208 2052 227 967 Wait 154 | . 1 3 . 8 104 . 38 Move 4658 | 95 79 268 142 1137 1811 223 903 Hop 26 | . . 3 . 4 19 . . Pick Up 40 | 7 5 5 . 14 9 . . Fast Attach 12 | . . . 1 2 7 2 . Attach 33 | 6 . 7 1 9 6 . 4 Detach 5 | . . 1 1 1 . . 2 Swap 15 | . 1 . 2 3 8 . 1 Drop 22 | . . . 2 6 13 1 . Fire 164 | 18 13 28 10 24 51 1 19 Melee . | . . . . . . . . Ram 4 | . . 4 . . . . . Kick . | . . . . . . . . Crush 24 | 5 3 16 . . . . . Escape Stasis 24 | . . . . . 24 . . Rewire . | . . . . . . . . Trap . | . . . . . . . . Miscellaneous . | . . . . . . . . Route ------- -11/Scrapyard -10/Materials (discovered 2 exits: [*Mat] / Min) -9/Materials -8/Materials -7/Factory -6/Factory -5/Factory -5/Upper Caves History --------- Turn | Location | Event 5 | -11/Scrapyard | Discovered new exit (range 16) 204 | -11/Scrapyard | Entered Materials 214 | -10/Materials | Identified exit to Mines 280 | -10/Materials | Discovered new exit (range 14) 310 | -10/Materials | Build established: Mutant 377 | -10/Materials | Entered another Materials area 377 | -9/Materials | Evolved 2 slots: Utility x2 552 | -9/Materials | Core integrity fell below 50% 559 | -9/Materials | Lost 4 parts (1p1n2w) 644 | -9/Materials | Core integrity fell below 20% 715 | -9/Materials | Discovered new exit (range 4) 723 | -9/Materials | Entered another Materials area 723 | -8/Materials | Evolved 2 slots: Power x1, Utility x1 789 | -8/Materials | Discovered new exit (range 10) 799 | -8/Materials | Entered Factory 799 | -7/Factory | Evolved 2 slots: Propulsion x2 870 | -7/Factory | Discovered new exit (range 5) 1197 | -7/Factory | Fabricated Xenon Bombardment Thruster? 1199 | -7/Factory | Search patrols dispatched 1207 | -7/Factory | Entered another Factory area 1207 | -6/Factory | Evolved 2 slots: Propulsion x1, Utility x1 1260 | -6/Factory | Spotted B-75 Beast 1581 | -6/Factory | Allied Derelicts emerged from ambush trap array 1648 | -6/Factory | Fabricated Xenon Bombardment Thruster (x2) 1749 | -6/Factory | Build established: Sprinter 1907 | -6/Factory | Search patrols dispatched 1952 | -6/Factory | Discovered new exit (range 9) 1958 | -6/Factory | Entered another Factory area 1958 | -5/Factory | Evolved 2 slots: Propulsion x1, Utility x1 2015 | -5/Factory | Discovered new exit (range 15) 2025 | -5/Factory | Entered Upper Caves 2027 | -5/Upper Caves | Learned 4 Factory zone layouts 2142 | -5/Upper Caves | Lost 5 parts (1p3n1w) 2144 | -5/Upper Caves | Attacked by a faux Warlord 2389 | -5/Upper Caves | Self-destructed Last Messages --------------- 02299_ Penetrated by Slug. 02343_ Slug penetrates Wall. 02346_ Slug penetrates H-66 Slayer. 02346_ Penetrated by Slug. 02346_ Xenon Bombardment Thruster destroyed. 02354_ Lgt. Angular Momentum Engine destroyed. 02354_ Destroyed Lgt. Angular Momentum Engine. 02354_ Slug penetrates Wall. 02354_ Penetrated by Slug. 02354_ Slug penetrates Wall. 02356_ The unstable cave ceiling collapses. 02357_ Penetrated by Slug. 02360_ Slug penetrates Wall. 02360_ Penetrated by Slug. 02360_ Critical hit (Destroy). 02360_ Prc. Grenade Launcher destroyed. 02360_ Slug penetrates H-66 Slayer. 02365_ Slug penetrates Wall. 02365_ Xenon Bombardment Thruster destroyed. 02387_ Slug penetrates Wall. Map ----- +----------------------------------------------------+ | | | ?????????????????????????????????????????????????? | | ?????????????????????????????????????????????????? | | ?????????????????????????????????????????????????? | | ?????????????????????????????????????????????????? | | ?????????????????????????????????????????????????? | | ?????????????????????????????????????????????????? | | ?????????????????????????????????????????????????? | | ?????????????????????????????????????????????????? | | ###??????????????????????????????????????????????? | | ##?????????????????????????????????????????????? | | ##????????????????????????????????????????????? | | #????????????????????????????????????????????? | | #????????????????????????????????????????????? | | #????????????????????????????????????????????? | | #??????###???????????????????????????????????? | | # #??????# ##??????????????????????????????????? | | ###????# ##?????????????????????????????????? | | ### ##??## #?????????????????????????????###?? | | #?## #????????????????????????????## #?? | | ### #???????????????????????????## #?? | | #?????????????????###??????## #?? | | #?????????###????## ##????## ##? | | # ## #????????## ##??## ###### ## | | # ### ### ##????????# #??# | | ########??##????????##@ #??# | | ### ##?????????##### #### ############ | | ##???????## ## #??????????# | | ##????### ##?????????## | | ## ###??# ##?????????## | | ?## ## #### ##????####?# | | ###### ### ### ##??## ### | | ### #?## ## ##?### #### # | | ### #??## #?## ##???# | | ## ## #???#####???#hh##??# # | | ?## #?????###???# #### # # | | ?# ##????## ##?## # | | ?# #?????# ### ## # # | | ## ##?????# ## #### # | | # ### ##??????# #####??##### # | | # ### #???????# ##??????????## # | | # # #??????## ### ####?????????##### # | | # ############## #?## #????###?????# | | # ###### #??## #??## ##????# | | # ###???# #??# ##???# | | ## #?????# ### ##??# | | ?## ##??##?# #??### | | ??### # ##?# ?? #????# | | ????## #### # ### ??##### #????# | | ?????## ##??### ## ## ### # ?# #????# | +----------------------------------------------------+ Best States ------------- Heat Dissipation 59 Energy Generation 31 Energy Capacity 220 Matter Stores 300 Matter Capacity 300 Sight Range 16 Terrain Scan Range 16 Terrain Scan Density 85 Jamming Range 12 Cloak Strength 2 Additional Mass Support 9 Evasion (%) 65 Recoil Reduction 2 Offensive Hacking 12 Item Schematics ----------------- Xenon Bombardment Thruster | -7/Factory | Scanalyzed Robot Schematics ------------------ None Fabricated ------------ Xenon Bombardment Thruster | x2 | -7/Factory Xenon Bombardment Thruster | x2 | -6/Factory Alien Tech Used ----------------- None Achievements -------------- Hey, That's Mine! Party Time Challenges ------------ None Game ------ Seed RagnarokForceMapper Manual? 0 Play Time 01:13:30 Cumulative 16.7 hours Start 2024.09.30 @ 20:12:28 End 2025.03.04 @ 21:28:11 Sessions 3 Manual Loads 0 Difficulty Rogue Special Mode None Game No. 22 Rogue 22 Adventurer 0 Explorer 0 Win Type - Total 0 Types 0/0/0/0/0/0/0/0/0 Lore% 4 Gallery% 20 Achievement% 18 Wizard Run 0 Options --------- Layout 0 ASCII 0 Keyboard 0 Movement Mouse Keybinds 0 Fullscreen 2 Font 24/Smallcaps Map View 113x50 Zoom Use 0% Tactical HUD 1 Map Filters NONE Filters NONE Steam 1 RUN: 6717ed5a-aa93-4441-a43f-39dc09280c34